bitfinex/quotes_ETHUSD_20241001
["timestamp","ask_amount","ask_price","bid_price","bid_amount"]
[1727779673236,4.53989,2643.5,2643.1,3.78341]
[1727779673645,3.78289,2643.5,2643.1,3.78341]
[1727779675551,3.60042263,2643.6,2643.1,3.78341]
[1727779676043,3.78286,2643.5,2643.1,3.78341]
[1727779676263,3.78286,2643.5,2643.1,4.615291]
[1727779678135,3.59979138,2643.6,2643.1,4.615291]
[1727779678339,7.38253138,2643.6,2643.1,4.615291]
[1727779680740,7.38224738,2643.6,2643.1,4.615291]
[1727779680940,3.78287,2643.5,2643.1,4.615291]
[1727779681679,3.78287,2643.5,2643.1,3.78341]
[1727779683681,1.98718949,2643.6,2643.2,0.07566384]
[1727779683858,5.76977949,2643.7,2643.4,0.8001]
[1727779684176,1.98718949,2643.8,2643.5,3.78277]
[1727779684401,6.7823,2643.9,2643.6,3.7827]
[1727779684402,1.98718949,2643.9,2643.6,3.7827]
[1727779684682,3.78216,2644.0,2643.6,3.7827]
[1727779684978,1.98668566,2643.9,2643.7,3.88313978]
[1727779685180,4.98668566,2644.0,2643.7,4.68103978]
[1727779685536,1.98668566,2643.9,2643.7,0.89849978]
[1727779687263,8.76883566,2644.0,2643.7,0.89849978]
[1727779688081,4.98668566,2644.0,2643.7,0.89849978]
[1727779689242,5.76883566,2644.0,2643.7,0.89849978]
[1727779689650,5.76863087,2644.0,2643.7,0.89849978]
[1727779690364,1.98648087,2644.0,2643.7,1.74490276]
[1727779690887,5.76866087,2644.0,2643.7,1.74490276]
[1727779692158,3.7823,2643.9,2643.7,1.74490276]
[1727779693498,1.98648087,2644.0,2643.7,1.74490276]
[1727779693693,5.76865087,2644.0,2643.7,1.74490276]
[1727779694588,5.76834945,2644.0,2643.7,1.74490276]
[1727779694793,3.78217,2644.0,2643.7,1.74490276]
[1727779695090,3.78217,2644.0,2643.7,0.89849978]
[1727779695874,5.76834945,2644.0,2643.7,0.89849978]
[1727779696461,3.78217,2644.0,2643.7,0.89849978]
[1727779697933,1.98617945,2644.1,2643.8,0.7552]
[1727779698235,1.98617945,2644.3,2644.1,4.53714]
[1727779698419,1.98617945,2644.4,2644.1,0.7552]
[1727779698632,5.76777945,2644.4,2644.2,0.09995859]
[1727779699534,5.76707186,2644.4,2644.2,0.09995859]
[1727779700246,1.98547186,2644.4,2644.2,0.09995859]
[1727779700533,3.59778975,2644.5,2644.2,0.09995859]
[1727779701434,1.98547186,2644.5,2644.2,0.54612583]
[1727779701646,9.54818186,2644.6,2644.2,0.54612583]
[1727779702011,5.76680186,2644.6,2644.2,4.32790583]
[1727779702428,9.54817186,2644.6,2644.2,4.32790583]
[1727779702915,5.76680186,2644.6,2644.2,4.32790583]
[1727779703116,7.56271,2644.6,2644.2,4.32790583]
[1727779704251,3.78144,2644.5,2644.2,0.54612583]
[1727779705026,3.78144,2644.5,2644.2,0.09995859]
[1727779705362,3.78144,2644.5,2644.1,0.7552]
[1727779705570,3.78144,2644.5,2644.3,0.09974306]
[1727779705862,3.78167,2644.4,2644.1,0.7552]
[1727779706064,3.78167,2644.4,2644.1,1.208928]
[1727779706267,3.78199,2644.2,2643.8,0.8159]
[1727779706437,3.78202,2644.1,2643.8,0.8159]
[1727779707750,3.78188,2644.2,2643.8,0.8159]
[1727779707951,3.78188,2644.2,2643.9,0.838085]
[1727779711056,5.39405789,2644.3,2643.9,4.620375]
[1727779711258,3.78174,2644.3,2643.9,4.620375]
[1727779713601,3.78174,2644.3,2643.9,0.838085]
[1727779713756,3.78188,2644.2,2643.9,0.838085]
[1727779714958,5.39403789,2644.3,2643.9,4.620355]
[1727779715201,3.78172,2644.3,2644.0,0.10000242]
[1727779716301,3.78185,2644.3,2644.0,0.10000242]
[1727779716661,3.78185,2644.3,2643.8,4.59824]
[1727779716900,3.78185,2644.3,2644.1,0.09992206]
[1727779717107,3.78185,2644.3,2643.8,5.43631]
[1727779717304,3.78188,2644.2,2643.8,5.43631]
[1727779717482,3.78188,2644.2,2643.9,0.10014126]
[1727779718695,3.78174,2644.3,2643.9,0.10014126]
[1727779720592,7.56355,2644.3,2643.9,0.10014126]
[1727779720834,3.78187,2644.2,2643.9,0.10014126]
[1727779721408,7.56355,2644.3,2643.9,0.10014126]
[1727779721694,3.78174,2644.3,2643.9,0.10014126]
[1727779722422,7.56355,2644.3,2643.9,0.10014126]
[1727779722623,3.78174,2644.3,2643.9,0.10014126]
[1727779723227,3.78174,2644.3,2643.9,3.88241126]
[1727779723446,7.56353,2644.3,2643.9,3.88241126]
[1727779723598,7.56353,2644.3,2643.9,0.10014126]
[1727779723922,3.78188,2644.2,2643.9,0.10014126]
[1727779724324,3.78174,2644.3,2643.9,0.10014126]
[1727779724529,3.78187,2644.2,2643.9,0.10014126]
[1727779724905,3.78174,2644.3,2643.9,0.10014126]
[1727779725106,7.56355,2644.3,2643.9,0.10014126]
[1727779725327,3.78189,2644.2,2643.9,0.10014126]
[1727779726430,3.78179,2644.3,2643.9,0.10014126]
[1727779726631,3.78179,2644.3,2643.9,3.88241126]
[1727779726799,3.78179,2644.3,2643.9,0.10014126]
[1727779727373,3.78188,2644.2,2643.9,0.10014126]
[1727779727672,1.61231789,2644.1,2643.9,0.10014126]
[1727779727835,5.39435789,2644.1,2643.9,0.10014126]
[1727779728428,5.39435789,2644.1,2643.1,20.22461112]
[1727779728429,5.39435789,2644.1,2643.6,0.7848]
[1727779728666,3.78219,2644.0,2643.6,0.7848]
[1727779728853,3.78219,2644.0,2643.6,4.5675]
[1727779729648,5.39435789,2644.1,2643.6,4.5675]
[1727779729649,3.78204,2644.1,2643.6,4.5675]
[1727779729875,3.78204,2644.1,2643.6,5.402529]
[1727779730049,7.56414,2644.1,2643.7,0.10034589]
[1727779730450,3.78215,2644.0,2643.7,0.10034589]
[1727779731898,3.78204,2644.1,2643.7,0.10034589]
[1727779732193,5.76681918,2644.3,2643.9,0.8205]
[1727779732684,3.78181,2644.3,2644.0,0.10006089]
[1727779732894,3.78181,2644.3,2644.1,0.8205]
[1727779733391,3.78181,2644.3,2644.2,0.09984171]
[1727779736178,3.78158,2644.4,2644.2,0.09984171]
[1727779736349,5.76651918,2644.5,2644.2,0.09984171]
[1727779736853,3.78157,2644.4,2644.2,0.09984171]
[1727779737273,5.76643918,2644.5,2644.2,0.09984171]
[1727779737674,3.7817,2644.4,2644.2,0.09984171]
[1727779739295,3.7817,2644.4,2644.2,0.57008988]
[1727779740768,7.5634,2644.4,2644.2,0.57008988]
[1727779740957,7.3801392,2644.3,2644.2,0.09984171]
[1727779741483,3.78197,2644.2,2644.0,0.7849]
[1727779741993,3.78186,2644.2,2644.0,0.7849]
[1727779742167,3.78186,2644.2,2643.8,0.7893]
[1727779742168,3.78206,2644.1,2643.8,0.7893]
[1727779742370,3.78206,2644.1,2643.8,3.930486]
[1727779742595,5.76869186,2644.2,2643.8,3.930486]
[1727779742916,3.78224,2644.0,2643.8,0.7893]
[1727779744958,3.78224,2644.0,2643.9,0.10014306]
[1727779746322,1.98683186,2644.1,2643.9,0.10014306]
[1727779746323,5.76890186,2644.1,2643.9,0.10014306]
[1727779746616,3.78214,2644.0,2643.9,0.10014306]
[1727779749979,5.76901064,2644.1,2643.9,0.10014306]
[1727779750822,3.78202,2644.1,2643.9,0.10014306]
[1727779751126,5.76901064,2644.1,2643.9,0.10014306]
[1727779751895,3.78202,2644.1,2643.9,0.10014306]
[1727779754934,3.782,2644.1,2643.9,0.10014306]
[1727779755133,5.76893064,2644.2,2643.9,0.56734437]
[1727779755426,1.98699064,2644.2,2644.0,0.8024]
[1727779755628,1.98699064,2644.3,2644.0,0.8024]
[1727779755835,1.98699064,2644.3,2644.1,0.09997683]
[1727779756827,5.76873064,2644.3,2644.1,0.09997683]
[1727779757332,3.78174,2644.3,2644.1,0.09997683]
[1727779757529,5.76873064,2644.3,2644.1,0.09997683]
[1727779764402,3.78174,2644.3,2644.1,0.09997683]
[1727779764606,1.98699064,2644.4,2644.1,0.09997683]
[1727779764900,5.76865064,2644.4,2644.1,0.09997683]
[1727779765132,1.98699064,2644.3,2644.1,0.09997683]
[1727779765634,3.78166,2644.4,2644.1,0.09997683]
[1727779765635,5.76865064,2644.4,2644.1,0.09997683]
[1727779765835,1.98699064,2644.3,2644.1,0.09997683]
[1727779766602,5.76865064,2644.4,2644.1,0.09997683]
[1727779766803,3.78173,2644.3,2644.1,0.09997683]
[1727779767343,5.76858838,2644.4,2644.1,0.09997683]
[1727779768027,9.55025838,2644.4,2644.1,0.09997683]
[1727779768427,5.76858838,2644.4,2644.1,0.09997683]
[1727779769539,3.78166,2644.4,2644.1,0.09997683]
[1727779769744,1.98692838,2644.5,2644.1,4.77536664]
[1727779770053,5.76821838,2644.6,2644.2,3.78182]
[1727779770202,5.76821838,2644.6,2644.1,4.77536664]
[1727779770407,1.98692838,2644.5,2644.3,0.09970654]
[1727779770613,1.98692838,2644.5,2644.4,0.09959697]
[1727779770905,1.98692838,2644.5,2644.1,4.67538981]
[1727779771144,1.98692838,2644.5,2644.4,0.09959697]
[1727779771442,1.98692838,2644.5,2644.1,4.67538981]
[1727779771443,5.76821838,2644.6,2644.1,4.67538981]
[1727779771601,1.98692838,2644.5,2644.4,0.09959697]
[1727779771804,5.76835838,2644.5,2644.1,0.89338981]
[1727779772005,5.76835838,2644.5,2644.4,0.09959697]
[1727779772207,5.76835838,2644.5,2644.1,3.78197]
[1727779772417,5.76783172,2644.5,2644.1,4.618612]
[1727779772945,5.76783172,2644.5,2644.2,0.09981612]
[1727779774351,1.98640172,2644.5,2644.2,3.88165612]
[1727779774512,5.76770172,2644.6,2644.2,3.88165612]
[1727779774847,5.76770172,2644.6,2644.3,0.8167]
[1727779775017,5.76770172,2644.6,2644.4,0.09959697]
[1727779775547,3.78143,2644.5,2644.4,0.09959697]
[1727779776314,5.76770172,2644.6,2644.4,0.09959697]
[1727779776838,9.54884391,2644.6,2644.4,0.09959697]
[1727779777915,3.78143,2644.5,2644.4,0.09959697]
[1727779782152,3.78178,2644.3,2644.0,0.7949]
[1727779782639,3.782,2644.1,2643.7,4.57211]
[1727779782817,3.782,2644.1,2643.8,1.576473]
[1727779783018,3.78196,2644.2,2643.8,5.358903]
[1727779783728,3.78196,2644.2,2643.8,1.576473]
[1727779784249,5.76793686,2644.2,2643.8,1.576473]
[1727779784640,3.78196,2644.2,2643.8,1.576473]
[1727779786345,5.76774686,2644.3,2643.9,0.6148633]
[1727779786542,9.54957686,2644.3,2643.9,0.6148633]
[1727779786752,3.78187,2644.2,2643.8,3.78236]
[1727779787841,5.76798465,2644.3,2643.9,3.78228]
[1727779790074,5.76798465,2644.3,2644.0,0.09666546]
[1727779791679,5.76820329,2644.3,2644.0,0.09666546]
[1727779792375,5.76820329,2644.3,2644.0,0.91796546]
[1727779795038,1.98643329,2644.3,2644.0,0.91796546]
[1727779795237,5.76802329,2644.4,2644.0,1.76620901]
[1727779796444,3.78172,2644.3,2644.0,1.76620901]
[1727779800590,5.76850043,2644.3,2644.0,1.76620901]
[1727779800778,3.78172,2644.3,2644.0,1.76620901]
[1727779800953,5.76850043,2644.3,2644.0,1.76620901]
[1727779801149,3.78172,2644.3,2644.0,1.76620901]
[1727779801347,5.76850043,2644.3,2644.0,1.76620901]
[1727779801949,3.78172,2644.3,2644.0,1.76620901]
[1727779802236,5.76850043,2644.3,2644.0,1.76620901]
[1727779802375,3.78172,2644.3,2644.0,1.76620901]
[1727779802884,5.76850043,2644.3,2644.0,1.76620901]
[1727779803261,3.78172,2644.3,2644.0,1.76620901]
[1727779803453,5.76837043,2644.4,2644.1,0.8305]
[1727779803652,5.76837043,2644.4,2644.2,0.09648618]
[1727779803951,3.78159,2644.4,2644.2,0.09648618]
[1727779804184,1.98678043,2644.4,2644.2,0.09648618]
[1727779804449,3.78146,2644.5,2644.2,0.09648618]
[1727779804450,5.76824043,2644.5,2644.2,0.09648618]
[1727779805062,9.54995229,2644.5,2644.2,0.09648618]
[1727779805405,5.76844229,2644.5,2644.2,0.09648618]
[1727779805968,5.76844229,2644.5,2644.2,0.65220815]
[1727779806165,9.54997229,2644.5,2644.2,0.65220815]
[1727779806496,3.7816,2644.4,2644.2,0.65220815]
[1727779806702,3.78171,2644.3,2644.2,0.09648618]
[1727779807227,3.78189,2644.2,2643.9,0.8096]
[1727779810274,3.78177,2644.3,2643.9,0.8096]
[1727779812414,3.78177,2644.3,2643.9,4.59186]
[1727779813011,5.76850782,2644.5,2644.1,3.78199]
[1727779813173,5.76850782,2644.5,2644.2,0.7589]
[1727779813174,5.76847782,2644.5,2644.2,0.7589]
[1727779813780,5.76845782,2644.6,2644.2,0.7589]
[1727779814006,1.98703782,2644.5,2644.2,0.7589]
[1727779814738,1.98690221,2644.5,2644.2,0.7589]
[1727779815015,5.76834221,2644.5,2644.2,0.7589]
[1727779817015,1.98690221,2644.5,2644.2,0.7589]
[1727779817315,1.98690221,2644.5,2644.2,5.373021]
[1727779817520,5.76821221,2644.6,2644.2,5.373021]
[1727779819021,1.98690221,2644.6,2644.3,3.78171]
[1727779819182,1.98690221,2644.6,2644.4,0.7613]
[1727779819379,1.98690221,2644.7,2644.5,0.832465]
[1727779819582,1.98690221,2644.7,2644.4,0.7613]
[1727779819583,1.98658461,2644.7,2644.4,0.7613]
[1727779819830,1.98658461,2644.7,2644.4,4.54287]
[1727779819985,1.98658461,2644.7,2644.5,0.09615021]
[1727779820593,1.98658461,2644.7,2644.5,0.56004323]
[1727779820786,1.98658461,2644.8,2644.5,0.56004323]
[1727779821017,1.98658461,2644.9,2644.6,0.7802]
[1727779821354,5.76744461,2644.9,2644.7,0.09591115]
[1727779823956,3.781,2644.8,2644.7,0.09591115]
[1727779824317,5.76744461,2644.9,2644.7,0.09591115]
[1727779824519,3.781,2644.8,2644.7,0.09591115]
[1727779824820,5.76626013,2644.9,2644.7,0.09591115]
[1727779825021,9.54720013,2644.9,2644.7,0.09591115]
[1727779825257,5.76626013,2644.9,2644.7,0.09591115]
[1727779825461,3.78086,2644.9,2644.7,0.09591115]
[1727779827423,5.76619013,2645.0,2644.7,0.09591115]
[1727779828863,3.78092,2644.9,2644.7,0.09591115]
[1727779831528,3.78086,2644.9,2644.7,0.09591115]
[1727779832321,9.54554665,2645.1,2644.8,0.8167]
[1727779832530,6.14985598,2645.4,2644.8,0.8167]
[1727779832531,3.78086,2644.9,2644.8,0.8167]
[1727779833948,3.78085,2645.0,2644.8,0.8167]
[1727779834836,7.56166,2645.0,2644.8,0.8167]
[1727779835166,3.78081,2645.0,2644.9,0.142557]
[1727779836328,3.78108,2644.8,2644.4,0.8206]
[1727779836560,7.5622,2644.8,2644.5,0.14300234]
[1727779836761,7.5622,2644.8,2644.5,0.61753157]
[1727779837168,3.78093,2644.9,2644.5,0.61753157]
[1727779837472,3.78113,2644.8,2644.5,0.14300234]
[1727779837827,3.78093,2644.9,2644.5,0.14300234]
[1727779838027,3.78115,2644.7,2644.5,0.14300234]
[1727779838465,3.78129,2644.6,2644.5,0.14300234]
[1727779838650,3.78115,2644.7,2644.5,0.14300234]
[1727779838651,3.78116,2644.7,2644.5,0.14300234]
[1727779838960,3.78129,2644.6,2644.5,0.14300234]
[1727779842058,3.78115,2644.7,2644.5,0.14300234]
[1727779843261,3.78102,2644.8,2644.5,0.14300234]
[1727779843764,3.78089,2644.9,2644.5,0.14300234]
[1727779843969,3.78114,2644.7,2644.5,0.14300234]
[1727779847543,3.78129,2644.6,2644.5,0.14300234]
[1727779847858,3.78115,2644.7,2644.5,0.14300234]
[1727779848444,7.56243,2644.7,2644.5,0.14300234]
[1727779848929,3.78115,2644.7,2644.5,0.14300234]
[1727779849678,7.56241,2644.7,2644.5,0.14300234]
[1727779849964,3.78115,2644.7,2644.5,0.14300234]
[1727779850734,7.56237,2644.7,2644.5,0.14300234]
[1727779851246,3.78115,2644.7,2644.5,0.14300234]
[1727779851769,3.78114,2644.7,2644.5,0.14300234]
[1727779852870,3.78129,2644.6,2644.5,0.14300234]
[1727779853048,7.37813067,2644.6,2644.5,0.14300234]
[1727779853242,8.14683067,2644.6,2644.5,0.14300234]
[1727779853443,3.7816,2644.4,2644.1,0.7614]
[1727779854836,3.78182,2644.3,2643.9,0.7922]
[1727779855076,3.78172,2644.3,2643.9,1.249654]
[1727779855782,3.78186,2644.2,2643.9,1.249654]
[1727779856075,3.78173,2644.3,2643.9,1.249654]
[1727779856443,3.78173,2644.3,2643.9,5.031904]
[1727779856849,3.78173,2644.3,2643.9,1.249654]
[1727779858594,3.78173,2644.3,2643.9,5.031934]
[1727779860766,7.56356,2644.3,2643.9,1.249654]
[1727779860969,3.78186,2644.2,2643.9,1.249654]
[1727779861287,5.39401789,2644.4,2643.9,1.249654]
[1727779861495,3.78173,2644.3,2643.9,0.7922]
[1727779861985,3.78188,2644.2,2643.9,0.7922]
[1727779862406,3.78233,2643.9,2643.6,0.761]
[1727779862549,5.39484789,2643.8,2643.6,0.761]
[1727779862754,3.78233,2643.9,2643.6,0.761]
[1727779862755,7.5647,2643.9,2643.6,0.761]
[1727779862982,3.78249,2643.8,2643.4,0.761]
[1727779863185,3.78279,2643.6,2643.4,0.761]
[1727779863791,3.78279,2643.6,2643.2,0.761]
[1727779864089,3.78279,2643.6,2643.2,4.998724]
[1727779864314,3.78279,2643.6,2643.2,1.215434]
[1727779864950,3.78279,2643.6,2643.3,0.14449332]
[1727779865195,3.78279,2643.6,2643.2,1.215434]
[1727779865499,7.56559,2643.6,2643.4,0.14438187]
[1727779865701,7.56559,2643.6,2643.3,0.14449332]
[1727779865991,7.56559,2643.6,2643.2,0.761]
[1727779865992,3.78279,2643.6,2643.4,0.14438187]
[1727779866353,3.78279,2643.6,2643.2,0.761]
[1727779866554,3.78279,2643.6,2643.3,0.14449332]
[1727779866858,3.78295,2643.5,2643.2,0.761]
[1727779867166,3.78295,2643.5,2643.3,0.13966977]
[1727779867596,3.78295,2643.5,2643.2,0.761]
[1727779867812,3.78295,2643.5,2643.4,0.13467806]
[1727779868089,3.78295,2643.5,2643.3,0.13478951]
[1727779868386,3.78295,2643.5,2643.4,0.13467806]
[1727779868789,3.78295,2643.5,2643.2,0.761]
[1727779869090,3.78295,2643.5,2643.4,0.13467806]
[1727779869295,3.78295,2643.5,2643.3,0.13478951]
[1727779869477,3.78295,2643.5,2643.4,0.13467806]
[1727779869814,3.78295,2643.5,2643.2,0.761]
[1727779869989,3.78295,2643.5,2643.4,0.13467806]
[1727779870190,3.78295,2643.5,2643.3,0.13478951]
[1727779870397,3.78295,2643.5,2643.4,0.13467806]
[1727779870892,3.78295,2643.5,2643.2,0.761]
[1727779871097,3.78295,2643.5,2643.4,0.13467806]
[1727779871297,7.56594,2643.5,2643.3,0.13478951]
[1727779871597,7.56594,2643.5,2643.4,0.13467806]
[1727779871898,3.78295,2643.5,2643.4,0.13467806]
[1727779872061,3.78295,2643.5,2643.2,0.761]
[1727779872396,3.78295,2643.5,2643.3,0.13478951]
[1727779872806,3.78295,2643.5,2643.2,0.761]
[1727779873105,3.78295,2643.5,2643.4,0.13467806]
[1727779873392,4.55145,2643.6,2643.4,0.13467806]
[1727779873619,4.55145,2643.6,2643.2,0.761]
[1727779873765,4.55145,2643.6,2643.5,0.13456662]
[1727779874081,4.55145,2643.6,2643.2,0.761]
[1727779874282,4.55145,2643.6,2643.5,0.13456662]
[1727779874461,4.55145,2643.6,2643.2,0.761]
[1727779874657,4.55145,2643.6,2643.5,0.13456662]
[1727779874886,4.55145,2643.6,2643.2,0.761]
[1727779875102,4.55145,2643.6,2643.5,0.13456662]
[1727779875266,4.55145,2643.6,2643.2,0.761]
[1727779875467,4.55145,2643.6,2643.5,0.13456662]
[1727779875685,4.55145,2643.6,2643.2,0.761]
[1727779875903,4.55145,2643.6,2643.5,0.13456662]
[1727779876412,4.55145,2643.6,2643.2,0.761]
[1727779876577,4.55145,2643.6,2643.5,0.13456662]
[1727779876774,4.55145,2643.6,2643.2,0.761]
[1727779876964,4.55145,2643.6,2643.5,0.13456662]
[1727779877173,4.55145,2643.6,2643.2,0.761]
[1727779877497,4.55145,2643.6,2643.5,0.13456662]
[1727779877701,4.55145,2643.6,2643.2,0.761]
[1727779877866,4.55145,2643.6,2643.5,0.13469722]
[1727779878070,4.55145,2643.6,2643.2,0.761]
[1727779878270,3.78293,2643.5,2643.2,0.761]
[1727779878899,4.55145,2643.6,2643.2,0.761]
[1727779879099,3.78307,2643.4,2643.0,0.7568]
[1727779880102,3.78288,2643.5,2643.1,0.13514304]
[1727779880286,3.78304,2643.4,2643.1,0.13514304]
[1727779881107,3.78286,2643.5,2643.1,0.13514304]
[1727779881308,3.78277,2643.6,2643.2,0.8183]
[1727779881812,7.56556,2643.6,2643.3,0.13492011]
[1727779882025,7.56556,2643.6,2643.2,0.8183]
[1727779882172,7.5656,2643.6,2643.4,0.13480866]
[1727779882576,7.5656,2643.6,2643.5,0.13469722]
[1727779882877,7.5656,2643.6,2643.2,0.8183]
[1727779883172,3.78287,2643.5,2643.2,0.8183]
[1727779883403,3.78287,2643.5,2643.3,0.13492011]
[1727779883605,3.78287,2643.5,2643.2,0.8183]
[1727779883805,3.78287,2643.5,2643.4,0.13480866]
[1727779883975,3.78287,2643.5,2643.2,0.8183]
[1727779884406,3.78287,2643.5,2643.3,0.13492011]
[1727779884804,3.78287,2643.5,2643.2,0.8183]
[1727779885113,3.78287,2643.5,2643.4,0.1349411]
[1727779885289,3.78287,2643.5,2643.3,0.13505255]
[1727779885490,3.78287,2643.5,2643.4,0.1349411]
[1727779885888,3.78287,2643.5,2643.2,0.8183]
[1727779886091,3.78287,2643.5,2643.4,0.1349411]
[1727779886717,3.78287,2643.5,2643.2,0.8183]
[1727779886884,3.78287,2643.5,2643.4,0.1349411]
[1727779887086,3.78287,2643.5,2643.3,0.13505255]
[1727779887413,3.78287,2643.5,2643.2,0.8183]
[1727779887414,3.78287,2643.5,2643.4,0.1349411]
[1727779887714,3.78287,2643.5,2643.2,0.8183]
[1727779887913,3.78287,2643.5,2643.4,0.1349411]
[1727779888089,3.78287,2643.5,2643.3,0.13505255]
[1727779888291,3.78274,2643.6,2643.4,0.1349411]
[1727779888604,3.78274,2643.6,2643.2,1.36307043]
[1727779888804,0.7687,2643.9,2643.5,0.13482966]
[1727779888805,4.55108,2643.9,2643.5,0.13482966]
[1727779889005,3.78238,2643.9,2643.6,0.8035]
[1727779889319,3.78238,2643.9,2643.6,0.93821822]
[1727779889491,3.78231,2643.9,2643.6,0.93821822]
[1727779892109,7.56468,2643.9,2643.6,0.93821822]
[1727779892354,3.78231,2643.9,2643.6,0.93821822]
[1727779893319,7.56468,2643.9,2643.6,1.45753574]
[1727779894921,3.78231,2643.9,2643.6,1.45753574]
[1727779895092,7.56468,2643.9,2643.6,1.45753574]
[1727779895422,3.78231,2643.9,2643.6,1.45753574]
[1727779895582,3.78245,2643.8,2643.6,1.45753574]
[1727779895780,3.78231,2643.9,2643.6,1.45753574]
[1727779896006,7.5647,2643.9,2643.6,1.45753574]
[1727779897243,1.61231789,2644.2,2643.6,1.45753574]
[1727779897441,3.78243,2643.8,2643.6,1.45753574]
[1727779898315,3.78243,2643.8,2643.6,0.13471822]
[1727779898316,3.78257,2643.7,2643.6,0.13471822]
[1727779898842,3.78257,2643.7,2643.2,4.61228]
[1727779899045,3.78257,2643.7,2643.6,0.13468556]
[1727779899410,3.78257,2643.7,2643.3,3.78314]
[1727779899746,3.78257,2643.7,2643.6,0.13468556]
[1727779899905,3.78257,2643.7,2643.2,4.61222]
[1727779900244,3.78257,2643.7,2643.3,0.839555]
[1727779900445,1.61231789,2643.8,2643.2,4.61219]
[1727779900446,3.78274,2643.6,2643.2,4.61219]
[1727779900631,3.78264,2643.7,2643.3,0.13501988]
[1727779900827,3.78264,2643.7,2643.2,4.61219]
[1727779901237,3.78264,2643.7,2643.3,0.13501988]
[1727779901546,3.78264,2643.7,2643.3,3.91814988]
[1727779901757,3.78264,2643.7,2643.3,3.78313]
[1727779901913,3.78264,2643.7,2643.4,0.13490843]
[1727779917958,1.98699648,2643.8,2643.4,0.13490843]
[1727779918129,3.78278,2643.6,2643.4,0.13490843]
[1727779918331,7.56558,2643.6,2643.2,4.61227]
[1727779918545,3.78278,2643.6,2643.5,0.13480969]
[1727779918743,6.53847648,2643.6,2643.2,0.829]
[1727779919045,3.78292,2643.5,2643.2,0.829]
[1727779919752,6.53844648,2643.6,2643.2,0.829]
[1727779919970,6.53844648,2643.6,2643.2,4.61228]
[1727779920435,4.55145,2643.6,2643.2,4.61228]
[1727779922172,3.78275,2643.6,2643.2,4.61228]
[1727779922640,5.76995935,2643.6,2643.2,4.61228]
[1727779922970,3.78275,2643.6,2643.2,4.61228]
[1727779924644,7.56556,2643.6,2643.2,4.61228]
[1727779925163,9.55295267,2643.6,2643.3,0.1350199]
[1727779925751,9.55295267,2643.6,2643.4,0.13490845]
[1727779926164,9.55295267,2643.6,2643.2,0.829]
[1727779926347,3.78275,2643.6,2643.5,0.13479701]
[1727779926671,3.78275,2643.6,2643.2,0.829]
[1727779926672,5.77014267,2643.6,2643.2,0.829]
[1727779927165,5.77014267,2643.6,2643.3,0.1350199]
[1727779927466,3.78292,2643.5,2643.2,0.829]
[1727779927772,3.78292,2643.5,2643.4,0.13490845]
[1727779927938,3.783,2643.4,2643.3,0.1350199]
[1727779928139,3.78316,2643.3,2642.9,4.59357]
[1727779928359,3.78329,2643.2,2642.9,0.8099]
[1727779928589,3.78354,2643.1,2642.7,0.8079]
[1727779928947,3.7836,2643.0,2642.7,0.8079]
[1727779930240,2.75615099,2643.2,2642.4,11.19431]
[1727779930241,3.78348,2643.1,2642.5,0.7635]
[1727779930554,3.78348,2643.1,2642.6,3.78413]
[1727779930964,3.78359,2643.0,2642.6,3.78413]
[1727779931859,3.78359,2643.0,2642.5,4.54778]
[1727779933702,3.78359,2643.0,2642.5,7.48523579]
[1727779934572,3.78359,2643.0,2642.5,7.48513579]
[1727779934744,3.78347,2643.1,2642.7,3.78392]
[1727779936844,3.7833,2643.2,2642.8,4.55143]
[1727779939513,7.56668,2643.2,2642.8,4.55143]
[1727779939797,3.7833,2643.2,2642.8,4.55143]
[1727779939973,3.7833,2643.2,2642.9,0.13560914]
[1727779940492,7.56668,2643.2,2642.9,0.13560914]
[1727779943281,3.7833,2643.2,2642.9,0.13560914]
[1727779943602,3.78349,2643.1,2642.9,0.13560914]
[1727779945381,3.78357,2643.0,2642.9,0.13560914]
[1727779948909,3.78346,2643.1,2642.9,0.13560914]
[1727779954939,3.7833,2643.2,2642.9,0.13560914]
[1727779955130,3.78348,2643.1,2642.9,0.13560914]
[1727779955573,3.7833,2643.2,2642.9,0.13560914]
[1727779955951,3.78351,2643.1,2642.9,0.13560914]
[1727779964468,3.78336,2643.2,2642.9,0.13560914]
[1727779965595,3.78345,2643.1,2642.9,0.13560914]
[1727779969107,3.7833,2643.2,2642.9,0.13560914]
[1727779971316,5.77050853,2643.2,2642.9,0.13560914]
[1727779971624,3.7833,2643.2,2642.9,0.13560914]
[1727779971818,5.77050853,2643.2,2642.9,0.13560914]
[1727779973619,1.98720853,2643.1,2642.9,0.13560914]
[1727779973819,5.77050853,2643.2,2642.9,0.13560914]
[1727779974120,1.98720853,2643.1,2642.9,0.13560914]
[1727779974816,3.7833,2643.2,2642.9,0.13560914]
[1727779975119,1.9893667,2643.1,2642.9,0.13560914]
[1727779976120,5.7726667,2643.2,2642.9,0.13560914]
[1727779977823,1.9893667,2643.1,2642.9,0.13560914]
[1727779978221,5.7726667,2643.2,2642.9,0.13560914]
[1727779978523,1.9893667,2643.1,2642.9,0.13560914]
[1727779979094,5.7726667,2643.2,2642.9,0.13560914]
[1727779979790,1.9893667,2643.2,2643.1,3.78343]
[1727779980102,6.56776338,2643.7,2643.1,0.90714608]
[1727779980103,5.77225912,2643.4,2643.1,0.90714608]
[1727779981127,1.98924912,2643.4,2643.1,4.69057608]
[1727779981302,1.98924912,2643.4,2643.1,5.15955369]
[1727779981501,1.98924912,2643.4,2643.1,8.94290369]
[1727779981691,5.39506789,2643.6,2643.1,5.15951369]
[1727779981692,5.77199912,2643.6,2643.1,5.15951369]
[1727779981888,5.77220912,2643.5,2643.1,5.15951369]
[1727779982828,3.78296,2643.5,2643.1,5.15951369]
[1727779982988,3.78303,2643.4,2643.1,1.37620369]
[1727779983189,3.78296,2643.5,2643.1,1.37620369]
[1727779983390,3.78303,2643.4,2643.1,1.37620369]
[1727779984346,3.78301,2643.4,2643.1,1.37620369]
[1727779986447,3.78296,2643.5,2643.1,1.37620369]
[1727779986650,3.78296,2643.5,2643.1,5.15959369]
[1727779986941,3.78296,2643.5,2643.1,1.37620369]
[1727779987143,7.56592,2643.5,2643.1,5.15963369]